fUST/lending_fUST_20260507
["ID","MTS","AMOUNT","RATE_DAILY","PERIOD"]
[421783903,1778152243000,-500.0,0.00011232,2]
[421783885,1778152243000,-500.0,0.00011232,2]
[421783945,1778152243000,-685.24,0.00011506,2]
[421783908,1778152243000,-500.0,0.00011232,2]
[421783948,1778152243000,-567.08,0.00011506,2]
[421783978,1778152243000,-500.0,0.00011506,2]
[421783984,1778152243000,-500.0,0.00011506,2]
[421783980,1778152243000,-4151.49,0.00011506,2]
[421783985,1778152243000,-500.0,0.00011506,2]
[421783979,1778152243000,-500.0,0.00011506,2]
[421783983,1778152243000,-953.26,0.00011506,2]
[421783982,1778152243000,-561.12,0.00011506,2]
[421783981,1778152243000,-500.0,0.00011506,2]
[421783991,1778152243000,-500.0,0.00011506,2]
[421783990,1778152243000,-1236.06,0.00011506,2]
[421784001,1778152243000,-500.0,0.00011506,2]
[421783992,1778152243000,-500.0,0.00011506,2]
[421783994,1778152243000,-427.5,0.00011506,2]
[421783989,1778152243000,-1290.7,0.00011506,2]
[421783996,1778152243000,-500.0,0.00011506,2]
[421783997,1778152243000,-500.0,0.00011506,2]
[421783993,1778152243000,-500.0,0.00011506,2]
[421784002,1778152243000,-151.0,0.000116,2]
[421783999,1778152243000,-500.0,0.00011506,2]
[421784000,1778152243000,-502.23,0.00011506,2]
[421784003,1778152243000,-151.0,0.000116,2]
[421784004,1778152243000,-2228.41620097,0.0001168,2]
[421784006,1778152243000,-365.1,0.0001178,2]
[421784005,1778152243000,-151.0,0.000117,2]
[421784007,1778152243000,-188.037,0.0001178,2]
[421784008,1778152243000,-500.0,0.0001178,2]
[421784009,1778152243000,-500.0,0.0001178,2]
[421783947,1778152243000,-381.2,0.00011506,2]
[421783995,1778152243000,-630.27,0.00011506,2]
[421783988,1778152243000,-500.0,0.00011506,2]
[421783998,1778152243000,-500.0,0.00011506,2]
[421783987,1778152243000,-500.0,0.00011506,2]
[421783950,1778152243000,-500.0,0.00011506,2]
[421783977,1778152243000,-588.68,0.00011506,2]
[421783960,1778152243000,-500.0,0.00011506,2]
[421783962,1778152243000,-913.55,0.00011506,2]
[421783961,1778152243000,-500.0,0.00011506,2]
[421783952,1778152243000,-500.0,0.00011506,2]
[421783958,1778152243000,-735.81,0.00011506,2]
[421783951,1778152243000,-500.0,0.00011506,2]
[421783955,1778152243000,-500.0,0.00011506,2]
[421783953,1778152243000,-500.0,0.00011506,2]
[421783957,1778152243000,-500.0,0.00011506,2]
[421783959,1778152243000,-500.0,0.00011506,2]
[421783956,1778152243000,-500.0,0.00011506,2]
[421783963,1778152243000,-671.09,0.00011506,2]
[421783954,1778152243000,-500.0,0.00011506,2]
[421783970,1778152243000,-742.89,0.00011506,2]
[421783975,1778152243000,-8622.21,0.00011506,2]
[421783974,1778152243000,-316.52,0.00011506,2]
[421783976,1778152243000,-500.0,0.00011506,2]
[421783968,1778152243000,-6136.48,0.00011506,2]
[421783965,1778152243000,-500.0,0.00011506,2]
[421783967,1778152243000,-417.3,0.00011506,2]
[421783971,1778152243000,-500.0,0.00011506,2]
[421783966,1778152243000,-500.0,0.00011506,2]
[421783986,1778152243000,-697.52,0.00011506,2]
[421783972,1778152243000,-500.0,0.00011506,2]
[421783973,1778152243000,-340.67,0.00011506,2]
[421783969,1778152243000,-500.0,0.00011506,2]
[421783964,1778152243000,-500.0,0.00011506,2]
[421784036,1778152244000,-8622.21,0.0001178,2]
[421784045,1778152244000,-500.0,0.0001178,2]
[421784034,1778152244000,-210.42,0.0001178,2]
[421784039,1778152244000,-500.0,0.0001178,2]
[421784025,1778152244000,-500.0,0.0001178,2]
[421784038,1778152244000,-588.68,0.0001178,2]
[421784035,1778152244000,-500.0,0.0001178,2]
[421784052,1778152244000,-603.61,0.0001178,2]
[421784033,1778152244000,-742.89,0.0001178,2]
[421784030,1778152244000,-500.005263,0.0001178,2]
[421784032,1778152244000,-500.0,0.0001178,2]
[421784041,1778152244000,-4151.49,0.0001178,2]
[421784051,1778152244000,-1236.06,0.0001178,2]
[421784037,1778152244000,-500.0,0.0001178,2]
[421784031,1778152244000,-6136.48,0.0001178,2]
[421784029,1778152244000,-500.0,0.0001178,2]
[421784017,1778152244000,-500.0,0.0001178,2]
[421784028,1778152244000,-362.79,0.0001178,2]
[421784044,1778152244000,-953.26,0.0001178,2]
[421784010,1778152244000,-500.0,0.0001178,2]
[421784011,1778152244000,-685.24,0.0001178,2]
[421784014,1778152244000,-450.63,0.0001178,2]
[421784016,1778152244000,-500.0,0.0001178,2]
[421784018,1778152244000,-500.0,0.0001178,2]
[421784013,1778152244000,-438.85,0.0001178,2]
[421784026,1778152244000,-913.55,0.0001178,2]
[421784020,1778152244000,-500.0,0.0001178,2]
[421784015,1778152244000,-500.0,0.0001178,2]
[421784021,1778152244000,-500.0,0.0001178,2]
[421784022,1778152244000,-735.81,0.0001178,2]
[421784012,1778152244000,-567.08,0.0001178,2]
[421784023,1778152244000,-500.0,0.0001178,2]
[421784024,1778152244000,-500.0,0.0001178,2]
[421784027,1778152244000,-671.09,0.0001178,2]
[421784019,1778152244000,-500.0,0.0001178,2]
[421784042,1778152244000,-500.0,0.0001178,2]
[421784050,1778152244000,-1290.7,0.0001178,2]
[421784053,1778152244000,-500.0,0.0001178,2]
[421784072,1778152244000,-2704.44054212,0.00012,2]
[421784068,1778152244000,-152.0,0.00010631,7]
[421784075,1778152244000,-151.0,0.00012,2]
[421784073,1778152244000,-151.0,0.00012,2]
[421784069,1778152244000,-152.0,0.00011416,30]
[421784077,1778152244000,-569.96861284,0.00012047,2]
[421784074,1778152244000,-937.592,0.00012,2]
[421784076,1778152244000,-8.24063024,0.00012047,2]
[421784067,1778152244000,-152.0,0.00010631,7]
[421784080,1778152244000,-500.0,0.00012054,2]
[421784079,1778152244000,-590.466,0.00012054,2]
[421784081,1778152244000,-102.42491384,0.00012054,2]
[421784078,1778152244000,-155.0,0.00012053,2]
[421784082,1778152244000,-0.04754513,0.00012054,2]
[421784043,1778152244000,-561.12,0.0001178,2]
[421784071,1778152244000,-4.97984123,0.00011954,2]
[421784066,1778152244000,-1906.69933351,0.00011954,2]
[421784070,1778152244000,-316.73702623,0.00011954,2]
[421784064,1778152244000,-900.83147387,0.00011861,2]
[421784047,1778152244000,-697.52,0.0001178,2]
[421784065,1778152244000,-151.0,0.000119,2]
[421784040,1778152244000,-500.0,0.0001178,2]
[421784046,1778152244000,-500.0,0.0001178,2]
[421784048,1778152244000,-500.0,0.0001178,2]
[421784054,1778152244000,-500.0,0.0001178,2]
[421784058,1778152244000,-500.0,0.0001178,2]
[421784049,1778152244000,-500.0,0.0001178,2]
[421784055,1778152244000,-500.0,0.0001178,2]
[421784057,1778152244000,-500.0,0.0001178,2]
[421784059,1778152244000,-502.23,0.0001178,2]
[421784060,1778152244000,-500.0,0.0001178,2]
[421784063,1778152244000,-6720.01055935,0.00011861,2]
[421784062,1778152244000,-151.0,0.000118,2]
[421784056,1778152244000,-500.0,0.0001178,2]
[421784061,1778152244000,-151.0,0.000118,2]
[421784121,1778152247000,-561.12,0.00012054,2]
[421784120,1778152247000,-500.0,0.00012054,2]
[421784119,1778152247000,-4151.49,0.00012054,2]
[421784114,1778152247000,-8622.21,0.00012054,2]
[421784117,1778152247000,-500.0,0.00012054,2]
[421784115,1778152247000,-500.0,0.00012054,2]
[421784126,1778152247000,-500.0,0.00012054,2]
[421784113,1778152247000,-500.0,0.00012054,2]
[421784118,1778152247000,-500.0,0.00012054,2]
[421784127,1778152247000,-500.0,0.00012054,2]
[421784140,1778152247000,-258.7926067,0.00012076,3]
[421784124,1778152247000,-500.0,0.00012054,2]
[421784128,1778152247000,-1290.7,0.00012054,2]
[421784122,1778152247000,-953.26,0.00012054,2]
[421784125,1778152247000,-697.52,0.00012054,2]
[421784129,1778152247000,-1236.06,0.00012054,2]
[421784130,1778152247000,-500.0,0.00012054,2]
[421784131,1778152247000,-500.0,0.00012054,2]
[421784135,1778152247000,-500.0,0.00012054,2]
[421784133,1778152247000,-500.0,0.00012054,2]
[421784112,1778152247000,-742.89,0.00012054,2]
[421784123,1778152247000,-500.0,0.00012054,2]
[421784108,1778152247000,-500.0,0.00012054,2]
[421784098,1778152247000,-500.0,0.00012054,2]
[421784105,1778152247000,-500.0,0.00012054,2]
[421784132,1778152247000,-500.0,0.00012054,2]
[421784091,1778152247000,-500.0,0.0001178,2]
[421784088,1778152247000,-500.0,0.00010958,2]
[421784090,1778152247000,-500.0,0.00011506,2]
[421784089,1778152247000,-500.0,0.00011232,2]
[421784097,1778152247000,-500.0,0.00012054,2]
[421784096,1778152247000,-567.08,0.00012054,2]
[421784099,1778152247000,-500.0,0.00012054,2]
[421784092,1778152247000,-5380.83851344,0.00011861,2]
[421784095,1778152247000,-685.24,0.00012054,2]
[421784094,1778152247000,-500.0,0.00012054,2]
[421784093,1778152247000,-397.52754103,0.00012054,2]
[421784101,1778152247000,-500.0,0.00012054,2]
[421784100,1778152247000,-500.0,0.00012054,2]
[421784102,1778152247000,-735.81,0.00012054,2]
[421784103,1778152247000,-500.0,0.00012054,2]
[421784104,1778152247000,-500.0,0.00012054,2]
[421784106,1778152247000,-913.55,0.00012054,2]
[421784116,1778152247000,-588.68,0.00012054,2]
[421784111,1778152247000,-500.0,0.00012054,2]
[421784109,1778152247000,-6136.48,0.00012054,2]
[421784107,1778152247000,-671.09,0.00012054,2]
[421784136,1778152247000,-502.23,0.00012054,2]
[421784150,1778152247000,-151.0,0.000123,2]
[421784141,1778152247000,-258.7926067,0.00012076,5]
[421784160,1778152247000,-500.0,0.00012328,2]
[421784159,1778152247000,-587.01,0.00012328,2]
[421784163,1778152247000,-500.0,0.00012328,2]
[421784171,1778152247000,-6136.48,0.00012328,2]
[421784170,1778152247000,-325.34,0.00012328,2]
[421784168,1778152247000,-913.55,0.00012328,2]
[421784173,1778152247000,-742.89,0.00012328,2]
[421784169,1778152247000,-671.09,0.00012328,2]
[421784167,1778152247000,-500.0,0.00012328,2]
[421784166,1778152247000,-500.0,0.00012328,2]
[421784172,1778152247000,-500.0,0.00012328,2]
[421784175,1778152247000,-8622.21,0.00012328,2]
[421784177,1778152247000,-588.68,0.00012328,2]
[421784176,1778152247000,-500.0,0.00012328,2]
[421784180,1778152247000,-3352.18620882,0.00012328,2]
[421784179,1778152247000,-500.0,0.00012328,2]
[421784181,1778152247000,-799.30379118,0.00012328,2]
[421784185,1778152247000,-500.0,0.00012328,2]
[421784183,1778152247000,-561.12,0.00012328,2]
[421784182,1778152247000,-500.0,0.00012328,2]
[421784174,1778152247000,-245.09,0.00012328,2]
[421784161,1778152247000,-500.0,0.00012328,2]
[421784178,1778152247000,-500.0,0.00012328,2]
[421784164,1778152247000,-735.81,0.00012328,2]
[421784162,1778152247000,-500.0,0.00012328,2]
[421784139,1778152247000,-310.55112804,0.00012066,14]
[421784137,1778152247000,-500.0,0.00012054,2]
[421784138,1778152247000,-500.0,0.00012054,2]
[421784142,1778152247000,-159.0,0.000121,3]
[421784153,1778152247000,-258.7926067,0.00012328,5]
[421784143,1778152247000,-194.0,0.000121,2]
[421784146,1778152247000,-151.0,0.000122,2]
[421784148,1778152247000,-549.0,0.00012244,2]
[421784151,1778152247000,-168.3888056,0.0001232,2]
[421784145,1778152247000,-151.0,0.000121,2]
[421784134,1778152247000,-500.0,0.00012054,2]
[421784144,1778152247000,-201.4,0.000121,2]
[421784147,1778152247000,-5498.05275069,0.00012201,2]
[421784152,1778152247000,-258.7926067,0.00012328,3]
[421784149,1778152247000,-153.01,0.00012267,2]
[421784184,1778152247000,-953.26,0.00012328,2]
[421784154,1778152247000,-500.0,0.00012328,2]
[421784158,1778152247000,-567.08,0.00012328,2]
[421784157,1778152247000,-685.24,0.00012328,2]
[421784155,1778152247000,-500.0,0.00012328,2]
[421784156,1778152247000,-500.0,0.00012328,2]
[421784165,1778152247000,-500.0,0.00012328,2]
[421784187,1778152248000,-697.52,0.00012328,2]
[421784189,1778152248000,-500.0,0.00012328,2]
[421784186,1778152248000,-500.0,0.00012328,2]
[421784190,1778152248000,-398.70408492,0.00012328,2]
[421784188,1778152248000,-500.0,0.00012328,2]
[421784414,1778152371000,15000.0,0.00015,120]
[421784415,1778152378000,1500.0,0.0001,30]
[421784434,1778152608000,5000.0,0.00019178,120]
[421784435,1778152619000,1234.0,0.00019178,120]
[421784436,1778152627000,4987.654,0.00019178,120]
[421784438,1778152639000,5000.0,0.00019178,120]
[421784439,1778152641000,5000.0,0.00019178,120]
[421784440,1778152642000,5000.0,0.00019178,120]
[421784442,1778152643000,5000.0,0.00019178,120]
[421784441,1778152643000,5000.0,0.00019178,120]
[421784443,1778152644000,5000.0,0.00019178,120]
[421784444,1778152645000,5000.0,0.00019178,120]
[421784445,1778152646000,5000.0,0.00019178,120]
[421784446,1778152646000,5000.0,0.00019178,120]
[421784447,1778152647000,5000.0,0.00019178,120]
[421784448,1778152653000,5000.0,0.00019178,120]
[421784449,1778152654000,5000.0,0.00019178,120]
[421784450,1778152655000,5000.0,0.00019178,120]
[421784451,1778152674000,1091.71609752,0.00019178,120]
[421784452,1778152771000,-151.0,9.465e-05,2]
[421784454,1778152831000,187.345817,4.264e-05,2]
[421784476,1778153003000,15153.0,0.00019178,120]
[421784477,1778153022000,5000.0,8.16e-05,2]
[421784478,1778153043000,5000.0,8.16e-05,2]
[421784480,1778153066000,5000.0,8.16e-05,2]
[421784482,1778153087000,5000.0,8.16e-05,2]
[421784483,1778153104000,6744.61890791,0.00019178,120]
[421784484,1778153109000,5000.0,8.16e-05,2]
[421784485,1778153131000,5000.0,8.16e-05,2]
[421784486,1778153154000,5000.0,8.16e-05,2]
[421784487,1778153176000,5000.0,8.16e-05,2]
[421784488,1778153198000,5000.0,8.16e-05,2]
[421784489,1778153220000,5000.0,8.16e-05,2]
[421784491,1778153241000,5000.0,8.16e-05,2]
[421784492,1778153264000,5000.0,8.16e-05,2]
[421784493,1778153286000,5000.0,8.16e-05,2]
[421784494,1778153295000,2002.71,0.00019178,120]
[421784495,1778153300000,3514.32237867,8.16e-05,2]
[421784496,1778153308000,5000.0,8.16e-05,2]
[421784499,1778153330000,5000.0,8.16e-05,2]
[421784500,1778153352000,5000.0,8.16e-05,2]
[421784501,1778153374000,5000.0,8.16e-05,2]
[421784502,1778153392000,29090.6008869,7.96e-05,2]
[421784503,1778153397000,5000.0,8.16e-05,2]
[421784504,1778153419000,5000.0,8.16e-05,2]
[421784578,1778153435000,-2000.0,8.219e-05,2]
[421784619,1778153439000,-2865.3602882,9.202e-05,2]
[421784627,1778153439000,-12564.929185,0.00010317,2]
[421784620,1778153439000,-51774.2233636,9.465e-05,2]
[421784624,1778153439000,-300.0,9.724e-05,2]
[421784622,1778153439000,-420.0,9.712e-05,2]
[421784621,1778153439000,-12564.929185,9.573e-05,2]
[421784628,1778153439000,-471.62445879,0.00010374,2]
[421784623,1778153439000,-1680.0,9.712e-05,2]
[421784625,1778153439000,-12564.929185,9.945e-05,2]
[421784626,1778153439000,-720.0,0.00010097,2]
[421784629,1778153439000,-500.0,0.0001041,2]
[421784630,1778153439000,-292.52238375,0.0001041,2]
[421784636,1778153439000,-473.31547581,0.0001041,2]
[421784633,1778153439000,-151.5,0.0001041,2]
[421784631,1778153439000,-500.0,0.0001041,2]
[421784634,1778153439000,-500.0,0.0001041,2]
[421784635,1778153439000,-151.5,0.0001041,2]
[421784639,1778153439000,-151.5,0.0001041,2]
[421784637,1778153439000,-151.5,0.0001041,2]
[421784638,1778153439000,-234.20137779,0.0001041,2]
[421784618,1778153439000,-12564.929185,9.202e-05,2]
[421784641,1778153439000,-164.02470756,0.00010615,2]
[421784640,1778153439000,-250.0,0.00010411,2]
[421784642,1778153439000,-151.5,0.00010615,2]
[421784644,1778153439000,-189.85731787,0.00010615,2]
[421784632,1778153439000,-500.0,0.0001041,2]
[421784617,1778153439000,-500.0,9.201e-05,2]
[421784606,1778153439000,-300.0,9.179e-05,2]
[421784614,1778153439000,-500.0,9.201e-05,2]
[421784650,1778153439000,-587.0,0.00010683,2]
[421784590,1778153439000,-187.345817,8.529e-05,2]
[421784589,1778153439000,-399.68174473,8.374e-05,2]
[421784591,1778153439000,-300.0,8.829e-05,2]
[421784593,1778153439000,-12564.929185,8.83e-05,2]
[421784595,1778153439000,-598.00402032,9.179e-05,2]
[421784594,1778153439000,-76832.8137971,9e-05,2]
[421784592,1778153439000,-1200.0,8.829e-05,2]
[421784597,1778153439000,-300.0,9.179e-05,2]
[421784599,1778153439000,-300.0,9.179e-05,2]
[421784601,1778153439000,-300.0,9.179e-05,2]
[421784596,1778153439000,-300.0,9.179e-05,2]
[421784616,1778153439000,-373.75803117,9.201e-05,2]
[421784600,1778153439000,-300.0,9.179e-05,2]
[421784603,1778153439000,-300.0,9.179e-05,2]
[421784604,1778153439000,-300.0,9.179e-05,2]
[421784602,1778153439000,-300.0,9.179e-05,2]
[421784607,1778153439000,-300.0,9.179e-05,2]
[421784605,1778153439000,-300.0,9.179e-05,2]
[421784608,1778153439000,-300.0,9.179e-05,2]
[421784613,1778153439000,-500.0,9.201e-05,2]
[421784609,1778153439000,-300.0,9.179e-05,2]
[421784612,1778153439000,-163.3773257,9.179e-05,2]
[421784610,1778153439000,-300.0,9.179e-05,2]
[421784611,1778153439000,-600.0,9.179e-05,2]
[421784615,1778153439000,-459.61979231,9.201e-05,2]
[421784598,1778153439000,-300.0,9.179e-05,2]
[421784651,1778153439000,-2351.0,0.00010683,2]
[421784667,1778153439000,-500.0,0.00010958,2]
[421784643,1778153439000,-151.5,0.00010615,2]
[421784677,1778153439000,-503.08154558,0.00010958,2]
[421784679,1778153439000,-500.0,0.00010958,2]
[421784685,1778153439000,-500.95981911,0.00010958,2]
[421784680,1778153439000,-502.15000446,0.00010958,2]
[421784687,1778153439000,-500.0,0.00010958,2]
[421784684,1778153439000,-503.41516373,0.00010958,2]
[421784681,1778153439000,-500.0,0.00010958,2]
[421784683,1778153439000,-500.0,0.00010958,2]
[421784682,1778153439000,-500.0,0.00010958,2]
[421784686,1778153439000,-500.0,0.00010958,2]
[421784689,1778153439000,-500.0,0.00010958,2]
[421784690,1778153439000,-500.0,0.00010958,2]
[421784678,1778153439000,-500.0,0.00010958,2]
[421784692,1778153439000,-500.0,0.00010958,2]
[421784694,1778153439000,-500.0,0.00010958,2]
[421784701,1778153439000,-500.0,0.00010958,2]
[421784693,1778153439000,-502.10773976,0.00010958,2]
[421784702,1778153439000,-861.1819,0.00010958,2]
[421784696,1778153439000,-500.0,0.00010958,2]
[421784697,1778153439000,-500.0,0.00010958,2]
[421784695,1778153439000,-500.0,0.00010958,2]
[421784698,1778153439000,-500.0,0.00010958,2]
[421784699,1778153439000,-500.0,0.00010958,2]
[421784700,1778153439000,-500.0,0.00010958,2]
[421784645,1778153439000,-169.08136411,0.00010615,2]
[421784703,1778153439000,-500.0,0.00010958,2]
[421784691,1778153439000,-500.0,0.00010958,2]
[421784673,1778153439000,-582.73,0.00010958,2]
[421784688,1778153439000,-501.36779032,0.00010958,2]
[421784671,1778153439000,-500.0,0.00010958,2]
[421784646,1778153439000,-500.0,0.00010615,2]
[421784675,1778153439000,-503.35520321,0.00010958,2]
[421784647,1778153439000,-500.0,0.00010615,2]
[421784649,1778153439000,-152.0,0.00010631,7]
[421784653,1778153439000,-163.37732569,0.00010858,2]
[421784652,1778153439000,-12564.929185,0.00010689,2]
[421784654,1778153439000,-172.22050848,0.00010903,2]
[421784656,1778153439000,-500.0,0.00010958,2]
[421784655,1778153439000,-537.6845,0.00010903,2]
[421784657,1778153439000,-500.53522593,0.00010958,2]
[421784659,1778153439000,-500.0,0.00010958,2]
[421784662,1778153439000,-500.0,0.00010958,2]
[421784663,1778153439000,-500.85246043,0.00010958,2]
[421784648,1778153439000,-393.01507182,0.00010615,2]
[421784661,1778153439000,-501.36932713,0.00010958,2]
[421784676,1778153439000,-501.05069934,0.00010958,2]
[421784660,1778153439000,-500.61307776,0.00010958,2]
[421784672,1778153439000,-503.39565289,0.00010958,2]
[421784670,1778153439000,-500.28201657,0.00010958,2]
[421784668,1778153439000,-500.0,0.00010958,2]
[421784669,1778153439000,-187.18583849,0.00010958,2]
[421784674,1778153439000,-500.0,0.00010958,2]
[421784666,1778153439000,-500.9011094,0.00010958,2]
[421784658,1778153439000,-500.0,0.00010958,2]
[421784664,1778153439000,-500.0,0.00010958,2]
[421784665,1778153439000,-500.0,0.00010958,2]
[421784739,1778153440000,-500.0,0.00010958,2]
[421784745,1778153440000,-500.0,0.00010958,2]
[421784736,1778153440000,-500.0,0.00010958,2]
[421784733,1778153440000,-500.0,0.00010958,2]
[421784740,1778153440000,-500.0,0.00010958,2]
[421784732,1778153440000,-500.0,0.00010958,2]
[421784737,1778153440000,-500.0,0.00010958,2]
[421784741,1778153440000,-501.53604267,0.00010958,2]
[421784743,1778153440000,-500.0,0.00010958,2]
[421784738,1778153440000,-500.0,0.00010958,2]
[421784742,1778153440000,-500.0,0.00010958,2]
[421784744,1778153440000,-501.77187504,0.00010958,2]
[421784753,1778153440000,-500.0,0.00010958,2]
[421784746,1778153440000,-501.52167488,0.00010958,2]
[421784749,1778153440000,-500.0,0.00010958,2]
[421784750,1778153440000,-504.59255657,0.00010958,2]
[421784751,1778153440000,-500.0,0.00010958,2]
[421784747,1778153440000,-501.85679007,0.00010958,2]
[421784752,1778153440000,-500.0,0.00010958,2]
[421784754,1778153440000,-500.37620783,0.00010958,2]
[421784755,1778153440000,-500.0,0.00010958,2]
[421784756,1778153440000,-500.0,0.00010958,2]
[421784757,1778153440000,-1000.0,0.00010958,2]
[421784758,1778153440000,-500.0,0.00010958,2]
[421784735,1778153440000,-501.43269592,0.00010958,2]
[421784748,1778153440000,-500.0,0.00010958,2]
[421784734,1778153440000,-502.45495213,0.00010958,2]
[421784705,1778153440000,-500.0,0.00010958,2]
[421784728,1778153440000,-501.24116254,0.00010958,2]
[421784762,1778153440000,-500.0,0.00010958,2]
[421784704,1778153440000,-500.0,0.00010958,2]
[421784706,1778153440000,-500.0,0.00010958,2]
[421784707,1778153440000,-500.0,0.00010958,2]
[421784709,1778153440000,-500.94622778,0.00010958,2]
[421784708,1778153440000,-500.0,0.00010958,2]
[421784710,1778153440000,-501.55244733,0.00010958,2]
[421784715,1778153440000,-500.0,0.00010958,2]
[421784713,1778153440000,-539.81175226,0.00010958,2]
[421784711,1778153440000,-500.0,0.00010958,2]
[421784714,1778153440000,-501.44408324,0.00010958,2]
[421784712,1778153440000,-501.86032758,0.00010958,2]
[421784731,1778153440000,-568.51418127,0.00010958,2]
[421784724,1778153440000,-500.0,0.00010958,2]
[421784727,1778153440000,-500.0,0.00010958,2]
[421784718,1778153440000,-500.0,0.00010958,2]
[421784722,1778153440000,-502.12622899,0.00010958,2]
[421784730,1778153440000,-500.70165682,0.00010958,2]
[421784726,1778153440000,-500.0,0.00010958,2]
[421784729,1778153440000,-500.0,0.00010958,2]
[421784720,1778153440000,-501.05839615,0.00010958,2]
[421784719,1778153440000,-570.37650765,0.00010958,2]
[421784721,1778153440000,-500.0,0.00010958,2]
[421784716,1778153440000,-500.0,0.00010958,2]
[421784725,1778153440000,-320.09903344,0.00010958,2]
[421784717,1778153440000,-500.74128912,0.00010958,2]
[421784723,1778153440000,-500.0,0.00010958,2]
[421784761,1778153440000,-501.91055265,0.00010958,2]
[421784780,1778153440000,-500.0,0.00010958,2]
[421784760,1778153440000,-559.8624157,0.00010958,2]
[421784795,1778153440000,-500.0,0.00010958,2]
[421784797,1778153440000,-500.0,0.00010958,2]
[421784796,1778153440000,-501.73025203,0.00010958,2]
[421784798,1778153440000,-500.0,0.00010958,2]
[421784800,1778153440000,-500.0,0.00010958,2]
[421784799,1778153440000,-501.0007008,0.00010958,2]
[421784805,1778153440000,-500.0,0.00010958,2]
[421784804,1778153440000,-500.0,0.00010958,2]
[421784801,1778153440000,-503.83204136,0.00010958,2]
[421784802,1778153440000,-500.0,0.00010958,2]
[421784806,1778153440000,-500.0,0.00010958,2]
[421784807,1778153440000,-500.0,0.00010958,2]
[421784809,1778153440000,-500.0,0.00010958,2]
[421784808,1778153440000,-500.0,0.00010958,2]
[421784810,1778153440000,-500.0,0.00010958,2]
[421784811,1778153440000,-504.88899158,0.00010958,2]
[421784813,1778153440000,-500.0,0.00010958,2]
[421784812,1778153440000,-500.8669944,0.00010958,2]
[421784818,1778153440000,-195.67320193,0.00010958,2]
[421784816,1778153440000,-500.0,0.00010958,2]
[421784814,1778153440000,-500.0,0.00010958,2]
[421784817,1778153440000,-500.0,0.00010958,2]
[421784815,1778153440000,-501.47099157,0.00010958,2]
[421784819,1778153440000,-503.15946589,0.00010958,2]
[421784763,1778153440000,-501.09613127,0.00010958,2]
[421784794,1778153440000,-500.0,0.00010958,2]
[421784793,1778153440000,-500.0,0.00010958,2]
[421784803,1778153440000,-500.0,0.00010958,2]
[421784790,1778153440000,-500.0,0.00010958,2]
[421784791,1778153440000,-500.0,0.00010958,2]
[421784765,1778153440000,-501.72355035,0.00010958,2]
[421784764,1778153440000,-500.0,0.00010958,2]
[421784766,1778153440000,-501.50091055,0.00010958,2]
[421784768,1778153440000,-500.4333698,0.00010958,2]
[421784767,1778153440000,-500.0,0.00010958,2]
[421784770,1778153440000,-500.64784997,0.00010958,2]
[421784772,1778153440000,-500.0,0.00010958,2]
[421784779,1778153440000,-500.0,0.00010958,2]
[421784771,1778153440000,-500.0,0.00010958,2]